Workbook

Sheet Cover

Sheet Change Log
A1: Institution | B1: Name | C1: Date | D1: File version | E1: Sheet Name | F1: Change | G1: Reason for Change

Sheet Objectives

Sheet CDH - DataBudget & Mass Storage
G4: All the formulas in the worksheet are based on Space mission analysis and Design third edition ( On board compter chapter)
A6: Input from OCDT | E6: OBC architecture | K6: House keeping
A7: Payload data rate | C7: 60000 | D7: bit/sec | E7: Type of architecture | G7: Centralized Single Processor (Single Master) | K7: Item | L7: Quantity | M7: Telemetry Type | N7: Frequency[Hz] | O7: Word Size single or double[bit] | P7: Required Data Rate[bps]
A8: Downlink data rate telemetry and ADCS channel | C8: 125 | D8: bit/sec | E8: Data protocol | G8: RS422 | K8: Power
A9: Downlink data rate payload channel | C9: 600 | D9: bit/sec | E9: I/O bus type | G9: RS422 | H9: =IF(VLOOKUP(G9,A101:B111,2,FALSE)<MAX(C14,C7,C15),"Not Comply","Comply") -> Comply | K9: Voltage Sensor | L9: 1 | M9: Voltage | N9: 1 | O9: 8 | P9: =O9*N9*L9 -> 8
A10: Payload duty cycle ( Worst Case) | C10: 0.3 | D10: % | E10: Operating system | G10: LINUX | K10: Power bus voltage Sensor | L10: 1 | M10: Voltage | N10: 1 | O10: 8 | P10: =O10*N10*L10 -> 8
A11: Ground station access in a day | C11: 800 | D11: Min | E11: Number of payload dedicated processors | G11: =IF(F11="",1,F11) -> 1 | H11: - | K11: Battery Charge Sensor | L11: 1 | M11: Voltage | N11: 1 | O11: 8 | P11: 8
A12: Orbit period | C12: 60 | D12: Min | E12: Number of ADCS dedicated processors | G12: =IF(F12="",1,F12) -> 1 | H12: - | K12: Power Mnt | L12: 1 | N12: 1 | O12: 8 | P12: 8
A13: Data estimated from spacecraft equipment | E13: Number of House Keeping dedicated processors | G13: 1 | H13: - | K13: Thermal
A14: House keeping data rate | C14: =IF(B14="",P47-SUM(P37:P43),B14) -> 781 | D14: bit/sec | E14: Redundant processors | G14: 1 | H14: -
A15: ADCS data rate | C15: =IF(B15="",SUM(P37:P43),B15) -> 1200 | D15: bit/sec | E15: Payload data processing | G15: On Board | K15: PRT sensor | L15: 2 | M15: Temperature | N15: 0.1 | O15: 16 | P15: 3.2
A16: House keeping sampling time | C16: =IF(B16="",5,B16) -> 5 | D16: s | E16: =IF(G15="On Board","Percentage of payload data processed on-board", "Data processed on ground") -> Percentage of payload data processed on-board | F16: 0.4 | G16: =IF(G15="Ground",0,F16) -> 0.4 | H16: % | K16: Thermal Control | L16: 1 | M16: Heaters | N16: 0.1 | O16: 8 | P16: 0.8
K18: Communication
A19: Data budget | K19: GPS Power level sensor | L19: 1 | M19: Voltage | N19: 1 | O19: 8 | P19: 8
A20: Payload data compression type | C20: Lossless Compression | E20: Data safety margin | G20: =IF(F20="",50%,F20) -> 0.5 | H20: % | K20: GPS temperature sensor | L20: 1 | M20: Temperature | N20: 1 | O20: 8 | P20: 8
A21: Data per day payload (always on) | C21: =(C7*60*60*24*VLOOKUP(C20,B98:C101,2,FALSE))/1000 -> 1296000 | D21: Kb/day | E21: Actual payload data in a day | G21: =(C24*C7*VLOOKUP(C20,B98:C101,2,FALSE))/1000 -> 6480 | H21: Kb | K21: Antenna Temperature | L21: 1 | M21: Temperature | N21: 1 | O21: 8 | P21: 8
A22: ADCS data per day (always on) | C22: =(C15*60*60*24)/1000 -> 103680 | D22: Kb/day | E22: Actual total house keeping and ADCS data | G22: =(C26*C14+C15*C26)/1000 -> 570.528 | H22: Kb | K22: Transmitter Power | L22: 2 | M22: Voltage | N22: 1 | O22: 8 | P22: 16
A23: House keeping data per day | C23: =ROUND((C14*60*60*24)/1000,0) -> 67478 | D23: Kb/day | E23: Downlinked data telemetry | G23: =(C25*C8)/1000 -> 100 | H23: Kb | K23: Kalman Filter | L23: 1 | M23: GPS | N23: 0.01 | O23: 16 | P23: 0.16
A24: Payload on (day) | C24: =IF(B24="",((24*60)/(C12))*(C12*C10),B24) -> 432 | D24: Min | E24: Total downlinked data (Payload) | G24: =(C25*C9)/1000 -> 480 | H24: Kb | K24: C & DH
A25: Ground station accesses (day) | C25: =IF(B25="",C11,B25) -> 800 | D25: Min | E25: Required on-board memory with margin | G25: =IF(F25="",(G21+G22)+(G21+G22)*G20,F25) -> 10575.792 | H25: Kb | K25: CPU power level | L25: 1 | M25: Voltage | N25: 1 | O25: 8 | P25: =O25*N25*L25 -> 8
A26: House keeping processes (day) | C26: =(((24*60*60)/(C16)))/60 -> 288 | D26: Min | E26: Free memory per day | G26: =(G25-(G25-((G24+G23)))) -> 580 | H26: Kb | K26: CPU temperature | L26: 1 | M26: Temperature | N26: 1 | O26: 8 | P26: 8
K27: Fault Detection Monitor | L27: 1 | M27: Event detection | N27: 5 | O27: 8 | P27: 40
A28: Single on-board mass storage | K28: Fault Correction | L28: 1 | M28: Event Detection | N28: 5 | O28: 8 | P28: 40
A29: Memory | C29: =G25 -> 10575.792 | D29: Kb | K29: Telemetry processing | L29: 1 | M29: System health | N29: 10 | O29: 8 | P29: 80
A30: Memory type | C30: SSD | D30: - | K30: Command Processing | L30: 1 | M30: System Mng | N30: 10 | O30: 8 | P30: 80
A31: Data protocol | C31: RS422
A32: I/O | C32: I2C
K33: Propulsion
A34: Payload mass storage | E34: Flight data mass storage | K34: Propellant Sensor | L34: 4 | M34: Voltage | N34: 10 | O34: 8 | P34: 320
A35: Memory | C35: =G21 -> 6480 | D35: Kb | E35: Memory | G35: =G22 -> 570.528 | H35: Kb | K35: Capacitor Voltage Sensor | L35: 8 | M35: Voltage | N35: 2 | O35: 8 | P35: 128
A36: Memory type | C36: SSD | E36: Memory type | G36: SSD | K36: ADCS
A37: Data protocol | C37: I2C | E37: Data protocol | G37: I2C | K37: Magnetometer | L37: 3 | M37: xyz position | N37: 10 | O37: 16 | P37: 480
A38: I/O | C38: I2C | E38: I/O | G38: I2C | K38: Gyro | L38: 3 | M38: xyz position | N38: 10 | O38: 8 | P38: 240
K39: Horizon | L39: 1 | M39: Pitch Roll | N39: 10 | O39: 8 | P39: 80
A40: Outputs to OCDT | K40: Temperature | L40: 4 | M40: Temperature | N40: 10 | O40: 8 | P40: 320
A41: On board memory mass [estimated] | C41: =B41 -> 0 | D41: Kg | E41: Total number of processors (k) | G41: =F41 -> 0 | H41: - | K41: Thruster Control | L41: 8 | M41: Thruster | N41: 1 | O41: 8 | P41: 64
A42: On board memory power [estimated] | C42: =B42 -> 0 | D42: W | E42: Redundant processors (n) | G42: =F42 -> 0 | H42: - | K42: Orbit Propagator | L42: 1 | M42: Orbit det | N42: 1 | O42: 8 | P42: 8
A43: Required on-board memory | C43: 0 | D43: Kb | E43: Redundacy Type | F43: Internal | G43: Internal | K43: Orbit error detection | L43: 1 | M43: Orbit Err | N43: 1 | O43: 8 | P43: 8
E44: Redundacy scheme | F44: Hot | G44: Hot | K44: Other
K45: Item1
K46: Item2
O47: Data rate [bps] | P47: =CEILING(SUM(P9:P43),1) -> 1981
B54: HDD | H54: Internal | I54: Cold
B55: SSD | H55: External | I55: Hot
B56: SD
B57: EDMM
A83: Centralized Single Processor (Single Master) | B83: RS422
A84: Bus Architecture Federated ( Single Master) | B84: RS485 | F84: 1 | G84: On Board
A85: Distributed - Bus ( Multi Master) | B85: PASTE | F85: 0 | G85: Ground
A86: Distributed - Star | B86: CAN
A87: Distributed Ring | B87: MIL-STD-1553
B88: I2C
C97: Compression Rate
A98: GNU | B98: None | C98: 1
A99: LINUX | B99: Lossless Compression | C99: =1/4 -> 0.25
A100: BSD | B100: Near-lossless compression | C100: =1/30 -> 0.03333333333
A101: OAR (real-time multiprocessor) | B101: Lossy Compression | C101: =1/80 -> 0.0125
A104: Bus I/O | B104: Data Rate
A105: RS422 | B105: 1000000 | C105: bit/sec
A106: RS422 | B106: 1000000 | C106: bit/sec
A107: MIL-STD-1553 | B107: 1000000 | C107: bit/s
A108: I2C | B108: 400000 | C108: bit/s
A109: SpireWire | B109: 400000000
A110: CAN | B110: 5000000
A111: Time Triggered ( Ethernet) | B111: 10000000000

Sheet CDH -Single Master
A7: Single OBC Processor | F7: CSC(Computer software components)
A8: Payload data rate | C8: ='CDH - DataBudget & Mass Storage'!C7*0.125 -> 7500 | D8: Byte/sec | F8: Function | G8: Is the function required? | H8: Advanced Programming language (from assembly) | I8: Complexity vs SOA | J8: SLOC | K8: Typical Execution Frequency [Hz]
A9: Software line of codes | C9: =K64 -> 156810 | D9: SLOC | F9: Communication
A10: CPU frequency | B10: 400 | C10: =IF(B10="","",B10) -> 400 | D10: MHz | F10: Command Processing | G10: 1 | H10: 1 | I10: 1 | J10: =IF(AND(H10=1),G10*(Constants!N116+(Constants!N116*I10)+(Constants!N116*0.25)),G10*Constants!N116+Constants!N116*I10) -> 2250 | K10: 10
A11: OBC throughput | C11: =IF(B12="",ROUND((C10/(G14*I14+G25*I25+G36*I36+G43*I43+G57*I57+G63*I63+G49*I49)),0),"") -> 145 | D11: MIPS | F11: Telemetry processing | G11: 1 | H11: 1 | I11: 1 | J11: =IF(AND(H11=1),G11*(Constants!N117+(Constants!N117*I11)+(Constants!N117*0.25)),G11*Constants!N117+Constants!N117*I11) -> 2250 | K11: 10
A12: Throughput (with payload) | C12: =IF(B12="",ROUND((C10/(G14*I14+G25*I25+G36*I36+G43*I43+G57*I57+G63*I63+G49*I49))+('CDH -Distributed'!C8*'CDH -Distributed'!C9/100)*'CDH - DataBudget & Mass Storage'!F16,0),"") -> 175 | D12: MIPS | F12: Telemetry processing (with compression) | G12: 1 | H12: 1 | I12: 1 | J12: =IF(AND(H12=1),G12*(Constants!N118+(Constants!N118*I12)+(Constants!N118*0.25)),G12*Constants!N118+Constants!N118*I12) -> 7875
A13: Data Protocol | C13: MIL-STD-1553 | F13: Total | G13: =SUM(J10:J12) -> 12375 | H13: Margin | I13: 1 | J13: Total with Margin | K13: =G13+G13*I13 -> 24750
A14: I/O | C14: MIL-STD-1553 | D14: =IF(VLOOKUP(C14,A118:B122,2,FALSE)<MAX('CDH - DataBudget & Mass Storage'!C14,'CDH - DataBudget & Mass Storage'!C7,'CDH - DataBudget & Mass Storage'!C15),"Not Comply","Comply") -> Comply | F14: Percent of available processing | G14: =(G13/$G$64) -> 0.09470059307 | H14: Clock Cycles | I14: 10
F15: Sensor
F16: Rate Gyro | G16: 1 | H16: 1 | I16: 0.5 | J16: =IF(AND(H16=1),G16*(Constants!N124+(Constants!N124*I16)+(Constants!N124*0.25)),G16* Constants!N124+Constants!N124*I16) -> 1400 | K16: 10
A17: Output to OCDT | F17: Sun Sensor | G17: 1 | H17: 1 | I17: 0.5 | J17: =IF(AND(H17=1),G17*(Constants!N125+(Constants!N125*I17)+(Constants!N125*0.25)),G17* Constants!N125+Constants!N125*I17) -> 875 | K17: 1
A18: CPU frequency | C18: =IF(B18="",C10,B18) -> 400 | D18: Hz | F18: Earth Sensor | G18: 1 | H18: 1 | I18: 0.5 | J18: =IF(AND(H18=1),G18*(Constants!N126+(Constants!N126*I18)+(Constants!N126*0.25)),G18* Constants!N126+Constants!N126*I18) -> 2100 | K18: 2
A19: CPU throughput | C19: =IF(B19="",C12,B19) -> 175 | D19: MIPS | F19: Magnetometer | G19: 1 | H19: 1 | I19: 0.5 | J19: =IF(AND(H19=1),G19*(Constants!N127+(Constants!N127*I19)+(Constants!N127*0.25)),G19* Constants!N127+Constants!N127*I19) -> 350 | K19: 0.01
A20: Board mass [estimated] | C20: =B20 -> 0 | D20: Kg | F20: Star Tracker (no id) | G20: 1 | H20: 1 | I20: 0.5 | J20: =IF(AND(H20=1),G20*(Constants!N128+(Constants!N128*I20)+(Constants!N128*0.25)),G20* Constants!N128+Constants!N128*I20) -> 700 | K20: 0.01
A21: Board power [estimated] | C21: =B21 -> 0 | D21: W | F21: Star tracker output quaternion | G21: 1 | H21: 1 | I21: 0.5 | J21: =IF(AND(H21=1),G21*(Constants!N129+(Constants!N129*I21)+(Constants!N129*0.25)),G21* Constants!N129+Constants!N129*I21) -> 3500 | K21: 1
F22: GPS(Position/velocity) | G22: 1 | H22: 1 | I22: 0.5 | J22: =IF(AND(H22=1),G22*(Constants!N130+(Constants!N130*I22)+(Constants!N130*0.25)),G22* Constants!N130+Constants!N130*I22) -> 525 | K22: 1
F23: GPS(Pseudo Range) | G23: 1 | H23: 1 | I23: 0.5 | J23: =IF(AND(H23=1),G23*(Constants!N131+(Constants!N131*I23)+(Constants!N131*0.25)),G23* Constants!N131+Constants!N131*I23) -> 4375
F24: Total | G24: =SUM(J16:J23) -> 13825 | H24: Margin | I24: 1 | J24: Total with Margin | K24: =G24+G24*I24 -> 27650
F25: Percent of available processing | G25: =(G24/$G$64) -> 0.1057968242 | H25: Clock Cycles | I25: 2
F26: AOCS
F27: Kinetic integration | G27: 1 | H27: 1 | I27: 0.5 | J27: =IF(AND(H27=1),G27*(Constants!N136+(Constants!N136*I27)+(Constants!N136*0.25)),G27*Constants!N136+Constants!N136*I27) -> 3500 | K27: 10
F28: Kalman Filter | G28: 1 | H28: 1 | I28: 0.5 | J28: =IF(AND(H28=1),G28*(Constants!N137+(Constants!N137*I28)+(Constants!N137*0.25)),G28*Constants!N137+Constants!N137*I28) -> 14000 | K28: 0.01
F29: Error Determination | G29: 1 | H29: 1 | I29: 0.5 | J29: =IF(AND(H29=1),G29*(Constants!N138+(Constants!N138*I29)+(Constants!N138*0.25)),G29*Constants!N138+Constants!N138*I29) -> 1400 | K29: 10
F30: Process Control | G30: 1 | H30: 1 | I30: 0.5 | J30: =IF(AND(H30=1),G30*(Constants!N139+(Constants!N139*I30)+(Constants!N139*0.25)),G30*Constants!N139+Constants!N139*I30) -> 6125 | K30: 2
F31: Ephemerisis Propagator | G31: 1 | H31: 1 | I31: 0.5 | J31: =IF(AND(H31=1),G31*(Constants!N140+(Constants!N140*I31)+(Constants!N140*0.25)),G31*Constants!N140+Constants!N140*I31) -> 3500 | K31: 2
F32: Complex Ephemerisis | G32: 1 | H32: 1 | I32: 0.5 | J32: =IF(AND(H32=1),G32*(Constants!N141+(Constants!N141*I32)+(Constants!N141*0.25)),G32*Constants!N141+Constants!N141*I32) -> 7000 | K32: 2
F33: Orbit Propagator (Linear) | G33: 1 | H33: 1 | I33: 0.5 | J33: =IF(AND(H33=1),G33*(Constants!N142+(Constants!N142*I33)+(Constants!N142*0.25)),G33*Constants!N142+Constants!N142*I33) -> 5250 | K33: 1
F34: Orbit Propagator (Complex Environment) | G34: 1 | H34: 1 | I34: 0.5 | J34: =IF(AND(H34=1),G34*(Constants!N143+(Constants!N143*I34)+(Constants!N143*0.25)),G34*Constants!N143+Constants!N143*I34) -> 14875 | K34: 2
F35: Total | G35: =SUM(J27:J34) -> 55650 | H35: Margin | I35: 1 | J35: Total with Margin | K35: =G35+G35*I35 -> 111300
F36: Percent of available processing | G36: =(G35/$G$64) -> 0.4258656973 | H36: Clock Cycles | I36: 2
F37: Actuator
F38: Magnetic control | G38: 1 | H38: 1 | I38: 0.5 | J38: =IF(AND(H38=1),G38*(Constants!N148+(Constants!N148*I38)+(Constants!N148*0.25)),G38*Constants!N148+Constants!N148*I38) -> 1050 | K38: 2
F39: Thruster Control | G39: 1 | H39: 1 | I39: 0.5 | J39: =IF(AND(H39=1),G39*(Constants!N149+(Constants!N149*I39)+(Constants!N149*0.25)),G39*Constants!N149+Constants!N149*I39) -> 1400 | K39: 2
F40: Reaction wheel control | G40: 1 | H40: 1 | I40: 0.5 | J40: =IF(AND(H40=1),G40*(Constants!N150+(Constants!N150*I40)+(Constants!N150*0.25)),G40*Constants!N150+Constants!N150*I40) -> 2100 | K40: 2
F41: CMG control | G41: 1 | H41: 1 | I41: 0.5 | J41: =IF(AND(H41=1),G41*(Constants!N151+(Constants!N151*I41)+(Constants!N151*0.25)),G41*Constants!N151+Constants!N151*I41) -> 2625 | K41: 10
F42: Total | G42: =SUM(J38:J41) -> 7175 | H42: Margin | I42: 1 | J42: Total with Margin | K42: =G42+G42*I42 -> 14350
F43: Percent of available processing | G43: =(G42/$G$64) -> 0.05490721255 | H43: Clock Cycles | I43: 2
F44: FDIR
F45: Monitor | G45: 1 | H45: 1 | I45: 0.5 | J45: =IF(AND(H45=1),G45*(Constants!N156+(Constants!N156*I45)+(Constants!N156*0.25)),G45*Constants!N156+Constants!N156*I45) -> 7000 | K45: 5
F46: Fault identification | G46: 1 | H46: 1 | I46: 0.5 | J46: =IF(AND(H46=1),G46*(Constants!N157+(Constants!N157*I46)+(Constants!N157*0.25)),G46*Constants!N157+Constants!N157*I46) -> 4375 | K46: 5
F47: Fault Correction | G47: 1 | H47: 1 | I47: 0.5 | J47: =IF(AND(H47=1),G47*(Constants!N158+(Constants!N158*I47)+(Constants!N158*0.25)),G47*Constants!N158+Constants!N158*I47) -> 8750 | K47: 5
F48: Total | G48: =SUM(J44:J47) -> 20125 | H48: Margin | I48: 1 | J48: Total with Margin | K48: =G48+G48*I48 -> 40250
F49: Percent of available processing | G49: =(G48/$G$64) -> 0.1540080352 | H49: Clock Cycles | I49: 2
F50: Utilities
F51: Basic Math | G51: 1 | H51: 1 | I51: 0.5 | J51: =IF(AND(H51=1),G51*(Constants!N163+(Constants!N163*I51)+(Constants!N163*0.25)),G51*Constants!N163+Constants!N163*I51) -> 1400
F52: Transcendental Math | G52: 1 | H52: 1 | I52: 0.5 | J52: =IF(AND(H52=1),G52*(Constants!N164+(Constants!N164*I52)+(Constants!N164*0.25)),G52*Constants!N164+Constants!N164*I52) -> 2625
F53: Matrix Math | G53: 1 | H53: 1 | I53: 0.5 | J53: =IF(AND(H53=1),G53*(Constants!N165+(Constants!N165*I53)+(Constants!N165*0.25)),G53*Constants!N165+Constants!N165*I53) -> 3150
F54: Time Mng and conversion | G54: 1 | H54: 1 | I54: 0.5 | J54: =IF(AND(H54=1),G54*(Constants!N166+(Constants!N166*I54)+(Constants!N166*0.25)),G54*Constants!N166+Constants!N166*I54) -> 2100
F55: Coordinate conversion | G55: 1 | H55: 1 | I55: 0.5 | J55: =IF(AND(H55=1),G55*(Constants!N167+(Constants!N167*I55)+(Constants!N167*0.25)),G55*Constants!N167+Constants!N167*I55) -> 3500
F56: Total | G56: =SUM(J51:J55) -> 12775 | H56: Margin | I56: 1 | J56: Total with Margin | K56: =G56+G56*I56 -> 25550
F57: Percent of available processing | G57: =(G56/$G$64) -> 0.09776162235 | H57: Clock Cycle | I57: 2
F58: Others
F59: Momentum Mng | G59: 1 | H59: 1 | I59: 0.5 | J59: =IF(H59=1,Constants!N172+(Constants!N172*0.25)+Constants!N172*I59,G59*Constants!N172+Constants!N172*I59) -> 5250
F60: Power Mng | G60: 1 | H60: 1 | I60: 0.5 | J60: =IF(H60=1,Constants!N173+(Constants!N173*0.25)+Constants!N173*I60,G60*Constants!N173+Constants!N173*I60) -> 2100 | K60: 1
F61: Thermal Control | G61: 1 | H61: 1 | I61: 0.5 | J61: =IF(H61=1,Constants!N174+(Constants!N174*0.25)+Constants!N174*I61,G61*Constants!N174+Constants!N174*I61) -> 1400 | K61: 0.1
F62: Total | G62: =SUM(J58:J61) -> 8750 | H62: Margin | I62: 1 | J62: Total with Margin | K62: =G62+G62*I62 -> 17500
F63: Percent of available processing | G63: =(G62/$G$64) -> 0.06696001531 | H63: Clock Cycle | I63: 2
F64: Grand Total | G64: =SUM(G62,G56,G48,G42,G35,G24,G13) -> 130675 | H64: Margin | I64: 0.2 | J64: Total With Margin | K64: =G64+G64*I64 -> 156810
A84: Centralized Single Processor (Single Master) | B84: RS422 | E84: 1
A85: Bus Architecture Federated ( Single Master) | B85: RS485 | E85: 0
B86: PASTE
B87: CAN
B88: MIL-STD-1553
B89: I2C
C98: Compression Rate
A99: GNU | B99: None | C99: 1
A100: LINUX | B100: Lossless Compression | C100: =1/4 -> 0.25
A101: BSD | B101: Near-lossless compression | C101: =1/30 -> 0.03333333333
A102: OAR (real-time multiprocessor) | B102: Lossy Compression | C102: =1/80 -> 0.0125
A105: Bus I/O | B105: Data Rate
A106: MIL-STD-1553 | B106: 1000000 | C106: bit/s
A107: I2C | B107: 400000 | C107: bit/s
A108: SpireWire | B108: 400000000
A109: CAN | B109: 5000000
A110: Time Triggered ( Ethernet) | B110: 10000000000
A118: MIL-STD-1553 | B118: 1000000 | C118: bit/s
A119: I2C | B119: 400000 | C119: bit/s
A120: SpireWire | B120: 400000000
A121: CAN | B121: 5000000
A122: Time Triggered ( Ethernet) | B122: 10000000000

Sheet Distributed - ADCS board (hidden)
A7: ADCS Processor | F7: CSC(Computer software components)
A8: Software line of codes | C8: =K64 -> 120510 | D8: SLOC | F8: Function | G8: Is the function required? | H8: Advanced Programming language (from assembly) | I8: Complexity vs SOA | J8: SLOC | K8: Typical Execution Frequency [Hz]
A9: CPU frequency | B9: 5 | C9: =IF(B9="","",B9) -> 5 | D9: MHz | F9: Communication
A10: OBC throughput | C10: =IF(B10="",ROUND((C9/(G14*I14+G25*I25+G36*I36+G43*I43+G57*I57+G63*I63+G49*I49)),0),"") -> 2 | D10: MIPS | F10: Command Processing | G10: 0 | H10: 1 | I10: 1 | J10: =IF(AND(H10=1),G10*(Constants!N116+(Constants!N116*I10)+(Constants!N116*0.25)),G10*Constants!N116+Constants!N116*I10) -> 0 | K10: 10
A11: Data protocol | C11: MIL-STD-1553 | F11: Telemetry processing | G11: 1 | H11: 1 | I11: 1 | J11: =IF(AND(H11=1),G11*(Constants!N117+(Constants!N117*I11)+(Constants!N117*0.25)),G11*Constants!N117+Constants!N117*I11) -> 2250 | K11: 10
A12: I/O | C12: MIL-STD-1553 | D12: =IF(VLOOKUP(C12,A118:B122,2,FALSE)<'CDH - DataBudget & Mass Storage'!C15,"Not Comply","Comply") -> Comply | F12: Telemetry processing (with compression) | G12: 0 | H12: 1 | I12: 1 | J12: =IF(AND(H12=1),G12*(Constants!N118+(Constants!N118*I12)+(Constants!N118*0.25)),G12*Constants!N118+Constants!N118*I12) -> 0
F13: Total | G13: =SUM(J10:J12) -> 2250 | H13: Margin | I13: 1 | J13: Total with Margin | K13: =G13+G13*I13 -> 4500
F14: Percent of available processing | G14: =(G13/$G$64) -> 0.02240477969 | H14: Clock Cycles | I14: 10
A15: Output to OCDT | F15: Sensor
A16: ADCS board frequency | C16: =IF(B16="",C9,B16) -> 5 | D16: Hz | F16: Rate Gyro | G16: 1 | H16: 1 | I16: 0.5 | J16: =IF(AND(H16=1),G16*(Constants!N124+(Constants!N124*I16)+(Constants!N124*0.25)),G16* Constants!N124+Constants!N124*I16) -> 1400 | K16: 10
A17: ADCS board throughput | C17: =IF(B17="",C10,B17) -> 2 | F17: Sun Sensor | G17: 1 | H17: 1 | I17: 0.5 | J17: =IF(AND(H17=1),G17*(Constants!N125+(Constants!N125*I17)+(Constants!N125*0.25)),G17* Constants!N125+Constants!N125*I17) -> 875 | K17: 1
A18: ADCS Board mass [estimated] | C18: =B18 -> 0 | D18: Kg | F18: Earth Sensor | G18: 1 | H18: 1 | I18: 0.5 | J18: =IF(AND(H18=1),G18*(Constants!N126+(Constants!N126*I18)+(Constants!N126*0.25)),G18* Constants!N126+Constants!N126*I18) -> 2100 | K18: 2
A19: ADCS Board power [estimated] | C19: =B19 -> 0 | D19: W | F19: Magnetometer | G19: 1 | H19: 1 | I19: 0.5 | J19: =IF(AND(H19=1),G19*(Constants!N127+(Constants!N127*I19)+(Constants!N127*0.25)),G19* Constants!N127+Constants!N127*I19) -> 350 | K19: 0.01
F20: Star Tracker (no id) | G20: 1 | H20: 1 | I20: 0.5 | J20: =IF(AND(H20=1),G20*(Constants!N128+(Constants!N128*I20)+(Constants!N128*0.25)),G20* Constants!N128+Constants!N128*I20) -> 700 | K20: 0.01
F21: Star tracker output quaternion | G21: 1 | H21: 1 | I21: 0.5 | J21: =IF(AND(H21=1),G21*(Constants!N129+(Constants!N129*I21)+(Constants!N129*0.25)),G21* Constants!N129+Constants!N129*I21) -> 3500 | K21: 1
F22: GPS(Position/velocity) | G22: 1 | H22: 1 | I22: 0.5 | J22: =IF(AND(H22=1),G22*(Constants!N130+(Constants!N130*I22)+(Constants!N130*0.25)),G22* Constants!N130+Constants!N130*I22) -> 525 | K22: 1
F23: GPS(Pseudo Range) | G23: 1 | H23: 1 | I23: 0.5 | J23: =IF(AND(H23=1),G23*(Constants!N131+(Constants!N131*I23)+(Constants!N131*0.25)),G23* Constants!N131+Constants!N131*I23) -> 4375
F24: Total | G24: =SUM(J16:J23) -> 13825 | H24: Margin | I24: 1 | J24: Total with Margin | K24: =G24+G24*I24 -> 27650
F25: Percent of available processing | G25: =(G24/$G$64) -> 0.1376649241 | H25: Clock Cycles | I25: 2
F26: AOCS
F27: Kinetic integration | G27: 1 | H27: 1 | I27: 0.5 | J27: =IF(AND(H27=1),G27*(Constants!N136+(Constants!N136*I27)+(Constants!N136*0.25)),G27*Constants!N136+Constants!N136*I27) -> 3500 | K27: 10
F28: Kalman Filter | G28: 1 | H28: 1 | I28: 0.5 | J28: =IF(AND(H28=1),G28*(Constants!N137+(Constants!N137*I28)+(Constants!N137*0.25)),G28*Constants!N137+Constants!N137*I28) -> 14000 | K28: 0.01
F29: Error Determination | G29: 1 | H29: 1 | I29: 0.5 | J29: =IF(AND(H29=1),G29*(Constants!N138+(Constants!N138*I29)+(Constants!N138*0.25)),G29*Constants!N138+Constants!N138*I29) -> 1400 | K29: 10
F30: Process Control | G30: 1 | H30: 1 | I30: 0.5 | J30: =IF(AND(H30=1),G30*(Constants!N139+(Constants!N139*I30)+(Constants!N139*0.25)),G30*Constants!N139+Constants!N139*I30) -> 6125 | K30: 2
F31: Ephemerisis Propagator | G31: 1 | H31: 1 | I31: 0.5 | J31: =IF(AND(H31=1),G31*(Constants!N140+(Constants!N140*I31)+(Constants!N140*0.25)),G31*Constants!N140+Constants!N140*I31) -> 3500 | K31: 2
F32: Complex Ephemerisis | G32: 1 | H32: 1 | I32: 0.5 | J32: =IF(AND(H32=1),G32*(Constants!N141+(Constants!N141*I32)+(Constants!N141*0.25)),G32*Constants!N141+Constants!N141*I32) -> 7000 | K32: 2
F33: Orbit Propagator (Linear) | G33: 1 | H33: 1 | I33: 0.5 | J33: =IF(AND(H33=1),G33*(Constants!N142+(Constants!N142*I33)+(Constants!N142*0.25)),G33*Constants!N142+Constants!N142*I33) -> 5250 | K33: 1
F34: Orbit Propagator (Complex Environment) | G34: 1 | H34: 1 | I34: 0.5 | J34: =IF(AND(H34=1),G34*(Constants!N143+(Constants!N143*I34)+(Constants!N143*0.25)),G34*Constants!N143+Constants!N143*I34) -> 14875 | K34: 2
F35: Total | G35: =SUM(J27:J34) -> 55650 | H35: Margin | I35: 1 | J35: Total with Margin | K35: =G35+G35*I35 -> 111300
F36: Percent of available processing | G36: =(G35/$G$64) -> 0.5541448842 | H36: Clock Cycles | I36: 2
F37: Actuator
F38: Magnetic control | G38: 1 | H38: 1 | I38: 0.5 | J38: =IF(AND(H38=1),G38*(Constants!N148+(Constants!N148*I38)+(Constants!N148*0.25)),G38*Constants!N148+Constants!N148*I38) -> 1050 | K38: 2
F39: Thruster Control | G39: 1 | H39: 1 | I39: 0.5 | J39: =IF(AND(H39=1),G39*(Constants!N149+(Constants!N149*I39)+(Constants!N149*0.25)),G39*Constants!N149+Constants!N149*I39) -> 1400 | K39: 2
F40: Reaction wheel control | G40: 1 | H40: 1 | I40: 0.5 | J40: =IF(AND(H40=1),G40*(Constants!N150+(Constants!N150*I40)+(Constants!N150*0.25)),G40*Constants!N150+Constants!N150*I40) -> 2100 | K40: 2
F41: CMG control | G41: 1 | H41: 1 | I41: 0.5 | J41: =IF(AND(H41=1),G41*(Constants!N151+(Constants!N151*I41)+(Constants!N151*0.25)),G41*Constants!N151+Constants!N151*I41) -> 2625 | K41: 10
F42: Total | G42: =SUM(J38:J41) -> 7175 | H42: Margin | I42: 1 | J42: Total with Margin | K42: =G42+G42*I42 -> 14350
F43: Percent of available processing | G43: =(G42/$G$64) -> 0.071446353 | H43: Clock Cycles | I43: 2
F44: FDIR
F45: Monitor | G45: 0 | H45: 1 | I45: 0.5 | J45: =IF(AND(H45=1),G45*(Constants!N156+(Constants!N156*I45)+(Constants!N156*0.25)),G45*Constants!N156+Constants!N156*I45) -> 0 | K45: 5
F46: Fault identification | G46: 0 | H46: 1 | I46: 0.5 | J46: =IF(AND(H46=1),G46*(Constants!N157+(Constants!N157*I46)+(Constants!N157*0.25)),G46*Constants!N157+Constants!N157*I46) -> 0 | K46: 5
F47: Fault Correction | G47: 0 | H47: 1 | I47: 0.5 | J47: =IF(AND(H47=1),G47*(Constants!N158+(Constants!N158*I47)+(Constants!N158*0.25)),G47*Constants!N158+Constants!N158*I47) -> 0 | K47: 5
F48: Total | G48: =SUM(J44:J47) -> 0 | H48: Margin | I48: 1 | J48: Total with Margin | K48: =G48+G48*I48 -> 0
F49: Percent of available processing | G49: =(G48/$G$64) -> 0 | H49: Clock Cycles | I49: 2
F50: Utilities
F51: Basic Math | G51: 1 | H51: 1 | I51: 0.5 | J51: =IF(AND(H51=1),G51*(Constants!N163+(Constants!N163*I51)+(Constants!N163*0.25)),G51*Constants!N163+Constants!N163*I51) -> 1400
F52: Transcendental Math | G52: 1 | H52: 1 | I52: 0.5 | J52: =IF(AND(H52=1),G52*(Constants!N164+(Constants!N164*I52)+(Constants!N164*0.25)),G52*Constants!N164+Constants!N164*I52) -> 2625
F53: Matrix Math | G53: 1 | H53: 1 | I53: 0.5 | J53: =IF(AND(H53=1),G53*(Constants!N165+(Constants!N165*I53)+(Constants!N165*0.25)),G53*Constants!N165+Constants!N165*I53) -> 3150
F54: Time Mng and conversion | G54: 1 | H54: 1 | I54: 0.5 | J54: =IF(AND(H54=1),G54*(Constants!N166+(Constants!N166*I54)+(Constants!N166*0.25)),G54*Constants!N166+Constants!N166*I54) -> 2100
F55: Coordinate conversion | G55: 1 | H55: 1 | I55: 0.5 | J55: =IF(AND(H55=1),G55*(Constants!N167+(Constants!N167*I55)+(Constants!N167*0.25)),G55*Constants!N167+Constants!N167*I55) -> 3500
F56: Total | G56: =SUM(J51:J55) -> 12775 | H56: Margin | I56: 1 | J56: Total with Margin | K56: =G56+G56*I56 -> 25550
F57: Percent of available processing | G57: =(G56/$G$64) -> 0.1272093602 | H57: Clock Cycle | I57: 2
F58: Others
F59: Momentum Mng | G59: 1 | H59: 1 | I59: 0.5 | J59: =IF(H59=1,Constants!N172+(Constants!N172*0.25)+Constants!N172*I59,G59*Constants!N172+Constants!N172*I59) -> 5250
F60: Power Mng | G60: 0 | H60: 1 | I60: 0.5 | J60: =IF(H60=1,Constants!N173+(Constants!N173*0.25)+Constants!N173*I60,G60*Constants!N173+Constants!N173*I60) -> 2100 | K60: 1
F61: Thermal Control | G61: 0 | H61: 1 | I61: 0.5 | J61: =IF(H61=1,Constants!N174+(Constants!N174*0.25)+Constants!N174*I61,G61*Constants!N174+Constants!N174*I61) -> 1400 | K61: 0.1
F62: Total | G62: =SUM(J58:J61) -> 8750 | H62: Margin | I62: 1 | J62: Total with Margin | K62: =G62+G62*I62 -> 17500
F63: Percent of available processing | G63: =(G62/$G$64) -> 0.08712969878 | H63: Clock Cycle | I63: 2
F64: Grand Total | G64: =SUM(G62,G56,G48,G42,G35,G24,G13) -> 100425 | H64: Margin | I64: 0.2 | J64: Total With Margin | K64: =G64+G64*I64 -> 120510
A84: Centralized Single Processor (Single Master) | B84: RS422 | E84: 1
A85: Bus Architecture Federated ( Single Master) | B85: RS485 | E85: 0
B86: PASTE
B87: CAN
B88: MIL-STD-1553
B89: I2C
C98: Compression Rate
A99: GNU | B99: None | C99: 1
A100: LINUX | B100: Lossless Compression | C100: =1/4 -> 0.25
A101: BSD | B101: Near-lossless compression | C101: =1/30 -> 0.03333333333
A102: OAR (real-time multiprocessor) | B102: Lossy Compression | C102: =1/80 -> 0.0125
A105: Bus I/O | B105: Data Rate
A106: MIL-STD-1553 | B106: 1000000 | C106: bit/s
A107: I2C | B107: 400000 | C107: bit/s
A108: SpireWire | B108: 400000000
A109: CAN | B109: 5000000
A110: Time Triggered ( Ethernet) | B110: 10000000000
A118: MIL-STD-1553 | B118: 1000000 | C118: bit/s
A119: I2C | B119: 400000 | C119: bit/s
A120: SpireWire | B120: 400000000
A121: CAN | B121: 5000000
A122: Time Triggered ( Ethernet) | B122: 10000000000

Sheet Distributed - Payload Board (hidden)
A7: Payload Processor | F7: CSC(Computer software components)
A8: Payload Data Rate | C8: ='CDH - DataBudget & Mass Storage'!C7*0.125 -> 7500 | D8: Byte/sec | F8: Function | G8: Is the function required? | H8: Advanced Programming language (from assembly) | I8: Complexity vs SOA | J8: SLOC | K8: Typical Execution Frequency [Hz]
A9: Software line of codes | C9: =K64 -> 82680 | D9: SLOC | F9: Communication
A10: CPU frequency | B10: 400 | C10: =IF(B10="","",B10) -> 400 | D10: MHz | F10: Command Processing | G10: 1 | H10: 1 | I10: 1 | J10: =IF(AND(H10=1),G10*(Constants!N116+(Constants!N116*I10)+(Constants!N116*0.25)),G10*Constants!N116+Constants!N116*I10) -> 2250 | K10: 10
A11: OBC throughput | C11: =IF(B12="",ROUND((C10/(G14*I14+G25*I25+G36*I36+G43*I43+G57*I57+G63*I63+G49*I49)),0),"") -> 159 | D11: MIPS | F11: Telemetry processing | G11: 1 | H11: 1 | I11: 1 | J11: =IF(AND(H11=1),G11*(Constants!N117+(Constants!N117*I11)+(Constants!N117*0.25)),G11*Constants!N117+Constants!N117*I11) -> 2250 | K11: 10
A12: Throughput (with Payload data) | C12: =IF(B12="",ROUND((C10/(G14*I14+G25*I25+G36*I36+G43*I43+G57*I57+G63*I63+G49*I49))+('CDH -Distributed'!C8*'CDH -Distributed'!C9/100)*'CDH - DataBudget & Mass Storage'!F16,0),"") -> 189 | D12: MIPS | F12: Telemetry processing (with compression) | G12: 0 | H12: 1 | I12: 1 | J12: =IF(AND(H12=1),G12*(Constants!N118+(Constants!N118*I12)+(Constants!N118*0.25)),G12*Constants!N118+Constants!N118*I12) -> 0
A13: Data protocol | C13: MIL-STD-1553 | F13: Total | G13: =SUM(J10:J12) -> 4500 | H13: Margin | I13: 1 | J13: Total with Margin | K13: =G13+G13*I13 -> 9000
A14: I/O | C14: MIL-STD-1553 | D14: =IF(VLOOKUP(C14,A118:B122,2,FALSE)<'CDH - DataBudget & Mass Storage'!C7,"Not Comply","Comply") -> Comply | F14: Percent of available processing | G14: =(G13/$G$64) -> 0.06531204644 | H14: Clock Cycles | I14: 10
F15: Sensor
A16: Output to OCDT | F16: Rate Gyro | G16: 0 | H16: 1 | I16: 0.5 | J16: =IF(AND(H16=1),G16*(Constants!N124+(Constants!N124*I16)+(Constants!N124*0.25)),G16* Constants!N124+Constants!N124*I16) -> 0 | K16: 10
A17: Payload board frequency | C17: =IF(B17="",C10,B17) -> 400 | D17: Hz | F17: Sun Sensor | G17: 0 | H17: 1 | I17: 0.5 | J17: =IF(AND(H17=1),G17*(Constants!N125+(Constants!N125*I17)+(Constants!N125*0.25)),G17* Constants!N125+Constants!N125*I17) -> 0 | K17: 1
A18: Payload board throughput | C18: =IF(B18="",C12,B18) -> 189 | D18: MIPS | F18: Earth Sensor | G18: 0 | H18: 1 | I18: 0.5 | J18: =IF(AND(H18=1),G18*(Constants!N126+(Constants!N126*I18)+(Constants!N126*0.25)),G18* Constants!N126+Constants!N126*I18) -> 0 | K18: 2
A19: Payload Board mass [estimated] | C19: =B19 -> 0 | D19: Kg | F19: Magnetometer | G19: 0 | H19: 1 | I19: 0.5 | J19: =IF(AND(H19=1),G19*(Constants!N127+(Constants!N127*I19)+(Constants!N127*0.25)),G19* Constants!N127+Constants!N127*I19) -> 0 | K19: 0.01
A20: Payload Board power [estimated] | C20: =B20 -> 0 | D20: W | F20: Star Tracker (no id) | G20: 0 | H20: 1 | I20: 0.5 | J20: =IF(AND(H20=1),G20*(Constants!N128+(Constants!N128*I20)+(Constants!N128*0.25)),G20* Constants!N128+Constants!N128*I20) -> 0 | K20: 0.01
F21: Star tracker output quaternion | G21: 0 | H21: 1 | I21: 0.5 | J21: =IF(AND(H21=1),G21*(Constants!N129+(Constants!N129*I21)+(Constants!N129*0.25)),G21* Constants!N129+Constants!N129*I21) -> 0 | K21: 1
F22: GPS(Position/velocity) | G22: 0 | H22: 1 | I22: 0.5 | J22: =IF(AND(H22=1),G22*(Constants!N130+(Constants!N130*I22)+(Constants!N130*0.25)),G22* Constants!N130+Constants!N130*I22) -> 0 | K22: 1
F23: GPS(Pseudo Range) | G23: 0 | H23: 1 | I23: 0.5 | J23: =IF(AND(H23=1),G23*(Constants!N131+(Constants!N131*I23)+(Constants!N131*0.25)),G23* Constants!N131+Constants!N131*I23) -> 0
F24: Total | G24: =SUM(J16:J23) -> 0 | H24: Margin | I24: 1 | J24: Total with Margin | K24: =G24+G24*I24 -> 0
F25: Percent of available processing | G25: =(G24/$G$64) -> 0 | H25: Clock Cycles | I25: 2
F26: AOCS
F27: Kinetic integration | G27: 1 | H27: 1 | I27: 0.5 | J27: =IF(AND(H27=1),G27*(Constants!N136+(Constants!N136*I27)+(Constants!N136*0.25)),G27*Constants!N136+Constants!N136*I27) -> 3500 | K27: 10
F28: Kalman Filter | G28: 1 | H28: 1 | I28: 0.5 | J28: =IF(AND(H28=1),G28*(Constants!N137+(Constants!N137*I28)+(Constants!N137*0.25)),G28*Constants!N137+Constants!N137*I28) -> 14000 | K28: 0.01
F29: Error Determination | G29: 0 | H29: 1 | I29: 0.5 | J29: =IF(AND(H29=1),G29*(Constants!N138+(Constants!N138*I29)+(Constants!N138*0.25)),G29*Constants!N138+Constants!N138*I29) -> 0 | K29: 10
F30: Process Control | G30: 0 | H30: 1 | I30: 0.5 | J30: =IF(AND(H30=1),G30*(Constants!N139+(Constants!N139*I30)+(Constants!N139*0.25)),G30*Constants!N139+Constants!N139*I30) -> 0 | K30: 2
F31: Ephemerisis Propagator | G31: 0 | H31: 1 | I31: 0.5 | J31: =IF(AND(H31=1),G31*(Constants!N140+(Constants!N140*I31)+(Constants!N140*0.25)),G31*Constants!N140+Constants!N140*I31) -> 0 | K31: 2
F32: Complex Ephemerisis | G32: 0 | H32: 1 | I32: 0.5 | J32: =IF(AND(H32=1),G32*(Constants!N141+(Constants!N141*I32)+(Constants!N141*0.25)),G32*Constants!N141+Constants!N141*I32) -> 0 | K32: 2
F33: Orbit Propagator (Linear) | G33: 1 | H33: 1 | I33: 0.5 | J33: =IF(AND(H33=1),G33*(Constants!N142+(Constants!N142*I33)+(Constants!N142*0.25)),G33*Constants!N142+Constants!N142*I33) -> 5250 | K33: 1
F34: Orbit Propagator (Complex Environment) | G34: 0 | H34: 1 | I34: 0.5 | J34: =IF(AND(H34=1),G34*(Constants!N143+(Constants!N143*I34)+(Constants!N143*0.25)),G34*Constants!N143+Constants!N143*I34) -> 0 | K34: 2
F35: Total | G35: =SUM(J27:J34) -> 22750 | H35: Margin | I35: 1 | J35: Total with Margin | K35: =G35+G35*I35 -> 45500
F36: Percent of available processing | G36: =(G35/$G$64) -> 0.3301886792 | H36: Clock Cycles | I36: 2
F37: Actuator
F38: Magnetic control | G38: 0 | H38: 1 | I38: 0.5 | J38: =IF(AND(H38=1),G38*(Constants!N148+(Constants!N148*I38)+(Constants!N148*0.25)),G38*Constants!N148+Constants!N148*I38) -> 0 | K38: 2
F39: Thruster Control | G39: 0 | H39: 1 | I39: 0.5 | J39: =IF(AND(H39=1),G39*(Constants!N149+(Constants!N149*I39)+(Constants!N149*0.25)),G39*Constants!N149+Constants!N149*I39) -> 0 | K39: 2
F40: Reaction wheel control | G40: 0 | H40: 1 | I40: 0.5 | J40: =IF(AND(H40=1),G40*(Constants!N150+(Constants!N150*I40)+(Constants!N150*0.25)),G40*Constants!N150+Constants!N150*I40) -> 0 | K40: 2
F41: CMG control | G41: 0 | H41: 1 | I41: 0.5 | J41: =IF(AND(H41=1),G41*(Constants!N151+(Constants!N151*I41)+(Constants!N151*0.25)),G41*Constants!N151+Constants!N151*I41) -> 0 | K41: 10
F42: Total | G42: =SUM(J38:J41) -> 0 | H42: Margin | I42: 1 | J42: Total with Margin | K42: =G42+G42*I42 -> 0
F43: Percent of available processing | G43: =(G42/$G$64) -> 0 | H43: Clock Cycles | I43: 2
F44: FDIR
F45: Monitor | G45: 1 | H45: 1 | I45: 0.5 | J45: =IF(AND(H45=1),G45*(Constants!N156+(Constants!N156*I45)+(Constants!N156*0.25)),G45*Constants!N156+Constants!N156*I45) -> 7000 | K45: 5
F46: Fault identification | G46: 1 | H46: 1 | I46: 0.5 | J46: =IF(AND(H46=1),G46*(Constants!N157+(Constants!N157*I46)+(Constants!N157*0.25)),G46*Constants!N157+Constants!N157*I46) -> 4375 | K46: 5
F47: Fault Correction | G47: 1 | H47: 1 | I47: 0.5 | J47: =IF(AND(H47=1),G47*(Constants!N158+(Constants!N158*I47)+(Constants!N158*0.25)),G47*Constants!N158+Constants!N158*I47) -> 8750 | K47: 5
F48: Total | G48: =SUM(J44:J47) -> 20125 | H48: Margin | I48: 1 | J48: Total with Margin | K48: =G48+G48*I48 -> 40250
F49: Percent of available processing | G49: =(G48/$G$64) -> 0.2920899855 | H49: Clock Cycles | I49: 2
F50: Utilities
F51: Basic Math | G51: 1 | H51: 1 | I51: 0.5 | J51: =IF(AND(H51=1),G51*(Constants!N163+(Constants!N163*I51)+(Constants!N163*0.25)),G51*Constants!N163+Constants!N163*I51) -> 1400
F52: Transcendental Math | G52: 1 | H52: 1 | I52: 0.5 | J52: =IF(AND(H52=1),G52*(Constants!N164+(Constants!N164*I52)+(Constants!N164*0.25)),G52*Constants!N164+Constants!N164*I52) -> 2625
F53: Matrix Math | G53: 1 | H53: 1 | I53: 0.5 | J53: =IF(AND(H53=1),G53*(Constants!N165+(Constants!N165*I53)+(Constants!N165*0.25)),G53*Constants!N165+Constants!N165*I53) -> 3150
F54: Time Mng and conversion | G54: 1 | H54: 1 | I54: 0.5 | J54: =IF(AND(H54=1),G54*(Constants!N166+(Constants!N166*I54)+(Constants!N166*0.25)),G54*Constants!N166+Constants!N166*I54) -> 2100
F55: Coordinate conversion | G55: 1 | H55: 1 | I55: 0.5 | J55: =IF(AND(H55=1),G55*(Constants!N167+(Constants!N167*I55)+(Constants!N167*0.25)),G55*Constants!N167+Constants!N167*I55) -> 3500
F56: Total | G56: =SUM(J51:J55) -> 12775 | H56: Margin | I56: 1 | J56: Total with Margin | K56: =G56+G56*I56 -> 25550
F57: Percent of available processing | G57: =(G56/$G$64) -> 0.185413643 | H57: Clock Cycle | I57: 2
F58: Others
F59: Momentum Mng | G59: 1 | H59: 1 | I59: 0.5 | J59: =IF(H59=1,Constants!N172+(Constants!N172*0.25)+Constants!N172*I59,G59*Constants!N172+Constants!N172*I59) -> 5250
F60: Power Mng | G60: 1 | H60: 1 | I60: 0.5 | J60: =IF(H60=1,Constants!N173+(Constants!N173*0.25)+Constants!N173*I60,G60*Constants!N173+Constants!N173*I60) -> 2100 | K60: 1
F61: Thermal Control | G61: 1 | H61: 1 | I61: 0.5 | J61: =IF(H61=1,Constants!N174+(Constants!N174*0.25)+Constants!N174*I61,G61*Constants!N174+Constants!N174*I61) -> 1400 | K61: 0.1
F62: Total | G62: =SUM(J58:J61) -> 8750 | H62: Margin | I62: 1 | J62: Total with Margin | K62: =G62+G62*I62 -> 17500
F63: Percent of available processing | G63: =(G62/$G$64) -> 0.1269956459 | H63: Clock Cycle | I63: 2
F64: Grand Total | G64: =SUM(G62,G56,G48,G42,G35,G24,G13) -> 68900 | H64: Margin | I64: 0.2 | J64: Total With Margin | K64: =G64+G64*I64 -> 82680
A84: Centralized Single Processor (Single Master) | B84: RS422 | E84: 1
A85: Bus Architecture Federated ( Single Master) | B85: RS485 | E85: 0
B86: PASTE
B87: CAN
B88: MIL-STD-1553
B89: I2C
C98: Compression Rate
A99: GNU | B99: None | C99: 1
A100: LINUX | B100: Lossless Compression | C100: =1/4 -> 0.25
A101: BSD | B101: Near-lossless compression | C101: =1/30 -> 0.03333333333
A102: OAR (real-time multiprocessor) | B102: Lossy Compression | C102: =1/80 -> 0.0125
A105: Bus I/O | B105: Data Rate
A106: MIL-STD-1553 | B106: 1000000 | C106: bit/s
A107: I2C | B107: 400000 | C107: bit/s
A108: SpireWire | B108: 400000000
A109: CAN | B109: 5000000
A110: Time Triggered ( Ethernet) | B110: 10000000000
A118: MIL-STD-1553 | B118: 1000000 | C118: bit/s
A119: I2C | B119: 400000 | C119: bit/s
A120: SpireWire | B120: 400000000
A121: CAN | B121: 5000000
A122: Time Triggered ( Ethernet) | B122: 10000000000

Sheet Distributed - TT&C (hidden)
A7: TT&C Processor | F7: CSC(Computer software components)
A8: Software line of codes | C8: =K64 -> 64830 | D8: SLOC | F8: Function | G8: Is the function required? | H8: Advanced Programming language (from assembly) | I8: Complexity vs SOA | J8: SLOC | K8: Typical Execution Frequency [Hz]
A9: CPU frequency | B9: 2 | C9: =IF(B9="","",B9) -> 2 | D9: MHz | F9: Communication
A10: Throughput | C10: =IF(B10="",ROUND((C9/(G14*I14+G25*I25+G36*I36+G43*I43+G57*I57+G63*I63+G49*I49)),0),"") -> 1 | D10: MIPS | F10: Command Processing | G10: 1 | H10: 1 | I10: 1 | J10: =IF(AND(H10=1),G10*(Constants!N116+(Constants!N116*I10)+(Constants!N116*0.25)),G10*Constants!N116+Constants!N116*I10) -> 2250 | K10: 10
A11: Data protocol | C11: MIL-STD-1553 | F11: Telemetry processing | G11: 1 | H11: 1 | I11: 1 | J11: =IF(AND(H11=1),G11*(Constants!N117+(Constants!N117*I11)+(Constants!N117*0.25)),G11*Constants!N117+Constants!N117*I11) -> 2250 | K11: 10
A12: I/O | C12: MIL-STD-1553 | D12: =IF(VLOOKUP(C12,A118:B122,2,FALSE)<'CDH - DataBudget & Mass Storage'!C14,"Not Comply","Comply") -> Comply | F12: Telemetry processing (with compression) | G12: 1 | H12: 1 | I12: 1 | J12: =IF(AND(H12=1),G12*(Constants!N118+(Constants!N118*I12)+(Constants!N118*0.25)),G12*Constants!N118+Constants!N118*I12) -> 7875
F13: Total | G13: =SUM(J10:J12) -> 12375 | H13: Margin | I13: 1 | J13: Total with Margin | K13: =G13+G13*I13 -> 24750
A14: Output to OCDT | F14: Percent of available processing | G14: =(G13/$G$64) -> 0.2290606201 | H14: Clock Cycles | I14: 10
A15: TT&C board frequency | C15: =IF(B15="",C9,B15) -> 2 | D15: Hz | F15: Sensor
A16: TT&C board throughput | C16: =IF(B16="",C10,B16) -> 1 | D16: MIPS | F16: Rate Gyro | G16: 0 | H16: 1 | I16: 0.5 | J16: =IF(AND(H16=1),G16*(Constants!N124+(Constants!N124*I16)+(Constants!N124*0.25)),G16* Constants!N124+Constants!N124*I16) -> 0 | K16: 10
A17: TT&C Board mass [estimated] | C17: =B17 -> 0 | D17: Kg | F17: Sun Sensor | G17: 0 | H17: 1 | I17: 0.5 | J17: =IF(AND(H17=1),G17*(Constants!N125+(Constants!N125*I17)+(Constants!N125*0.25)),G17* Constants!N125+Constants!N125*I17) -> 0 | K17: 1
A18: TT&C Board power [estimated] | C18: =B18 -> 0 | D18: W | F18: Earth Sensor | G18: 0 | H18: 1 | I18: 0.5 | J18: =IF(AND(H18=1),G18*(Constants!N126+(Constants!N126*I18)+(Constants!N126*0.25)),G18* Constants!N126+Constants!N126*I18) -> 0 | K18: 2
F19: Magnetometer | G19: 0 | H19: 1 | I19: 0.5 | J19: =IF(AND(H19=1),G19*(Constants!N127+(Constants!N127*I19)+(Constants!N127*0.25)),G19* Constants!N127+Constants!N127*I19) -> 0 | K19: 0.01
F20: Star Tracker (no id) | G20: 0 | H20: 1 | I20: 0.5 | J20: =IF(AND(H20=1),G20*(Constants!N128+(Constants!N128*I20)+(Constants!N128*0.25)),G20* Constants!N128+Constants!N128*I20) -> 0 | K20: 0.01
F21: Star tracker output quaternion | G21: 0 | H21: 1 | I21: 0.5 | J21: =IF(AND(H21=1),G21*(Constants!N129+(Constants!N129*I21)+(Constants!N129*0.25)),G21* Constants!N129+Constants!N129*I21) -> 0 | K21: 1
F22: GPS(Position/velocity) | G22: 0 | H22: 1 | I22: 0.5 | J22: =IF(AND(H22=1),G22*(Constants!N130+(Constants!N130*I22)+(Constants!N130*0.25)),G22* Constants!N130+Constants!N130*I22) -> 0 | K22: 1
F23: GPS(Pseudo Range) | G23: 0 | H23: 1 | I23: 0.5 | J23: =IF(AND(H23=1),G23*(Constants!N131+(Constants!N131*I23)+(Constants!N131*0.25)),G23* Constants!N131+Constants!N131*I23) -> 0
F24: Total | G24: =SUM(J16:J23) -> 0 | H24: Margin | I24: 1 | J24: Total with Margin | K24: =G24+G24*I24 -> 0
F25: Percent of available processing | G25: =(G24/$G$64) -> 0 | H25: Clock Cycles | I25: 2
F26: AOCS
F27: Kinetic integration | G27: 0 | H27: 1 | I27: 0.5 | J27: =IF(AND(H27=1),G27*(Constants!N136+(Constants!N136*I27)+(Constants!N136*0.25)),G27*Constants!N136+Constants!N136*I27) -> 0 | K27: 10
F28: Kalman Filter | G28: 0 | H28: 1 | I28: 0.5 | J28: =IF(AND(H28=1),G28*(Constants!N137+(Constants!N137*I28)+(Constants!N137*0.25)),G28*Constants!N137+Constants!N137*I28) -> 0 | K28: 0.01
F29: Error Determination | G29: 0 | H29: 1 | I29: 0.5 | J29: =IF(AND(H29=1),G29*(Constants!N138+(Constants!N138*I29)+(Constants!N138*0.25)),G29*Constants!N138+Constants!N138*I29) -> 0 | K29: 10
F30: Process Control | G30: 0 | H30: 1 | I30: 0.5 | J30: =IF(AND(H30=1),G30*(Constants!N139+(Constants!N139*I30)+(Constants!N139*0.25)),G30*Constants!N139+Constants!N139*I30) -> 0 | K30: 2
F31: Ephemerisis Propagator | G31: 0 | H31: 1 | I31: 0.5 | J31: =IF(AND(H31=1),G31*(Constants!N140+(Constants!N140*I31)+(Constants!N140*0.25)),G31*Constants!N140+Constants!N140*I31) -> 0 | K31: 2
F32: Complex Ephemerisis | G32: 0 | H32: 1 | I32: 0.5 | J32: =IF(AND(H32=1),G32*(Constants!N141+(Constants!N141*I32)+(Constants!N141*0.25)),G32*Constants!N141+Constants!N141*I32) -> 0 | K32: 2
F33: Orbit Propagator (Linear) | G33: 0 | H33: 1 | I33: 0.5 | J33: =IF(AND(H33=1),G33*(Constants!N142+(Constants!N142*I33)+(Constants!N142*0.25)),G33*Constants!N142+Constants!N142*I33) -> 0 | K33: 1
F34: Orbit Propagator (Complex Environment) | G34: 0 | H34: 1 | I34: 0.5 | J34: =IF(AND(H34=1),G34*(Constants!N143+(Constants!N143*I34)+(Constants!N143*0.25)),G34*Constants!N143+Constants!N143*I34) -> 0 | K34: 2
F35: Total | G35: =SUM(J27:J34) -> 0 | H35: Margin | I35: 1 | J35: Total with Margin | K35: =G35+G35*I35 -> 0
F36: Percent of available processing | G36: =(G35/$G$64) -> 0 | H36: Clock Cycles | I36: 2
F37: Actuator
F38: Magnetic control | G38: 0 | H38: 1 | I38: 0.5 | J38: =IF(AND(H38=1),G38*(Constants!N148+(Constants!N148*I38)+(Constants!N148*0.25)),G38*Constants!N148+Constants!N148*I38) -> 0 | K38: 2
F39: Thruster Control | G39: 0 | H39: 1 | I39: 0.5 | J39: =IF(AND(H39=1),G39*(Constants!N149+(Constants!N149*I39)+(Constants!N149*0.25)),G39*Constants!N149+Constants!N149*I39) -> 0 | K39: 2
F40: Reaction wheel control | G40: 0 | H40: 1 | I40: 0.5 | J40: =IF(AND(H40=1),G40*(Constants!N150+(Constants!N150*I40)+(Constants!N150*0.25)),G40*Constants!N150+Constants!N150*I40) -> 0 | K40: 2
F41: CMG control | G41: 0 | H41: 1 | I41: 0.5 | J41: =IF(AND(H41=1),G41*(Constants!N151+(Constants!N151*I41)+(Constants!N151*0.25)),G41*Constants!N151+Constants!N151*I41) -> 0 | K41: 10
F42: Total | G42: =SUM(J38:J41) -> 0 | H42: Margin | I42: 1 | J42: Total with Margin | K42: =G42+G42*I42 -> 0
F43: Percent of available processing | G43: =(G42/$G$64) -> 0 | H43: Clock Cycles | I43: 2
F44: FDIR
F45: Monitor | G45: 1 | H45: 1 | I45: 0.5 | J45: =IF(AND(H45=1),G45*(Constants!N156+(Constants!N156*I45)+(Constants!N156*0.25)),G45*Constants!N156+Constants!N156*I45) -> 7000 | K45: 5
F46: Fault identification | G46: 1 | H46: 1 | I46: 0.5 | J46: =IF(AND(H46=1),G46*(Constants!N157+(Constants!N157*I46)+(Constants!N157*0.25)),G46*Constants!N157+Constants!N157*I46) -> 4375 | K46: 5
F47: Fault Correction | G47: 1 | H47: 1 | I47: 0.5 | J47: =IF(AND(H47=1),G47*(Constants!N158+(Constants!N158*I47)+(Constants!N158*0.25)),G47*Constants!N158+Constants!N158*I47) -> 8750 | K47: 5
F48: Total | G48: =SUM(J44:J47) -> 20125 | H48: Margin | I48: 1 | J48: Total with Margin | K48: =G48+G48*I48 -> 40250
F49: Percent of available processing | G49: =(G48/$G$64) -> 0.3725127256 | H49: Clock Cycles | I49: 2
F50: Utilities
F51: Basic Math | G51: 1 | H51: 1 | I51: 0.5 | J51: =IF(AND(H51=1),G51*(Constants!N163+(Constants!N163*I51)+(Constants!N163*0.25)),G51*Constants!N163+Constants!N163*I51) -> 1400
F52: Transcendental Math | G52: 1 | H52: 1 | I52: 0.5 | J52: =IF(AND(H52=1),G52*(Constants!N164+(Constants!N164*I52)+(Constants!N164*0.25)),G52*Constants!N164+Constants!N164*I52) -> 2625
F53: Matrix Math | G53: 1 | H53: 1 | I53: 0.5 | J53: =IF(AND(H53=1),G53*(Constants!N165+(Constants!N165*I53)+(Constants!N165*0.25)),G53*Constants!N165+Constants!N165*I53) -> 3150
F54: Time Mng and conversion | G54: 1 | H54: 1 | I54: 0.5 | J54: =IF(AND(H54=1),G54*(Constants!N166+(Constants!N166*I54)+(Constants!N166*0.25)),G54*Constants!N166+Constants!N166*I54) -> 2100
F55: Coordinate conversion | G55: 1 | H55: 1 | I55: 0.5 | J55: =IF(AND(H55=1),G55*(Constants!N167+(Constants!N167*I55)+(Constants!N167*0.25)),G55*Constants!N167+Constants!N167*I55) -> 3500
F56: Total | G56: =SUM(J51:J55) -> 12775 | H56: Margin | I56: 1 | J56: Total with Margin | K56: =G56+G56*I56 -> 25550
F57: Percent of available processing | G57: =(G56/$G$64) -> 0.2364645997 | H57: Clock Cycle | I57: 2
F58: Others
F59: Momentum Mng | G59: 1 | H59: 1 | I59: 0.5 | J59: =IF(H59=1,Constants!N172+(Constants!N172*0.25)+Constants!N172*I59,G59*Constants!N172+Constants!N172*I59) -> 5250
F60: Power Mng | G60: 1 | H60: 1 | I60: 0.5 | J60: =IF(H60=1,Constants!N173+(Constants!N173*0.25)+Constants!N173*I60,G60*Constants!N173+Constants!N173*I60) -> 2100 | K60: 1
F61: Thermal Control | G61: 1 | H61: 1 | I61: 0.5 | J61: =IF(H61=1,Constants!N174+(Constants!N174*0.25)+Constants!N174*I61,G61*Constants!N174+Constants!N174*I61) -> 1400 | K61: 0.1
F62: Total | G62: =SUM(J58:J61) -> 8750 | H62: Margin | I62: 1 | J62: Total with Margin | K62: =G62+G62*I62 -> 17500
F63: Percent of available processing | G63: =(G62/$G$64) -> 0.1619620546 | H63: Clock Cycle | I63: 2
F64: Grand Total | G64: =SUM(G62,G56,G48,G42,G35,G24,G13) -> 54025 | H64: Margin | I64: 0.2 | J64: Total With Margin | K64: =G64+G64*I64 -> 64830
A84: Centralized Single Processor (Single Master) | B84: RS422 | E84: 1
A85: Bus Architecture Federated ( Single Master) | B85: RS485 | E85: 0
B86: PASTE
B87: CAN
B88: MIL-STD-1553
B89: I2C
C98: Compression Rate
A99: GNU | B99: None | C99: 1
A100: LINUX | B100: Lossless Compression | C100: =1/4 -> 0.25
A101: BSD | B101: Near-lossless compression | C101: =1/30 -> 0.03333333333
A102: OAR (real-time multiprocessor) | B102: Lossy Compression | C102: =1/80 -> 0.0125
A105: Bus I/O | B105: Data Rate
A106: MIL-STD-1553 | B106: 1000000 | C106: bit/s
A107: I2C | B107: 400000 | C107: bit/s
A108: SpireWire | B108: 400000000
A109: CAN | B109: 5000000
A110: Time Triggered ( Ethernet) | B110: 10000000000
A118: MIL-STD-1553 | B118: 1000000 | C118: bit/s
A119: I2C | B119: 400000 | C119: bit/s
A120: SpireWire | B120: 400000000
A121: CAN | B121: 5000000
A122: Time Triggered ( Ethernet) | B122: 10000000000

Sheet Radiation Hardness
N8: Shielding | O8: Total Dose (kRad) at 700 km | R8: Total Dose (kRad) at 1000 km | U8: Total Dose (kRad) at 2000 km
N9: Thickness
N10: mil AL | O10: 1 yr | P10: 5 yrs | Q10: 12 yrs | R10: 1 yr | S10: 3 yrs | T10: 5 yrs | U10: 1 yr | V10: 5 yrs | W10: 12 yrs
N11: 50 | O11: 7.16 | P11: =5*O11 -> 35.8 | Q11: =12*O11 -> 85.92 | R11: 14 | S11: =3*R11 -> 42 | T11: =5*R11 -> 70 | U11: 164.68 | V11: =5*U11 -> 823.4 | W11: =12*U11 -> 1976.16
N12: =10+N11 -> 60 | O12: 5.51 | P12: =5*O12 -> 27.55 | Q12: =12*O12 -> 66.12 | R12: 11 | S12: =3*R12 -> 33 | T12: =5*R12 -> 55 | U12: 125.63 | V12: =5*U12 -> 628.15 | W12: =12*U12 -> 1507.56
N13: =10+N12 -> 70 | O13: 4.33 | P13: 21.65 | Q13: 51.96 | R13: 8.8 | S13: 26.4 | T13: 44 | U13: 97.86 | V13: 489.3 | W13: 1174.32
N14: 80 | O14: 3.58 | P14: 17.9 | Q14: 42.96 | R14: 7 | S14: 21 | T14: 35 | U14: 80.19 | V14: 400.95 | W14: 962.28
N15: 90 | O15: 2.96 | P15: 14.8 | Q15: 35.52 | R15: 5.8 | S15: 17.4 | T15: 29 | U15: 65.71 | V15: 328.55 | W15: 788.52
N16: 100 | O16: 2.47 | P16: 12.35 | Q16: 29.64 | R16: 5 | S16: 15 | T16: 25 | U16: 54.34 | V16: 271.7 | W16: 652.08
N17: 110 | O17: 2.08 | P17: 10.4 | Q17: 24.96 | R17: 4.4 | S17: 13.2 | T17: 22 | U17: 45.55 | V17: 227.75 | W17: 546.6
N18: 120 | O18: 1.83 | P18: 9.15 | Q18: 21.96 | R18: 3.9 | S18: 11.7 | T18: 19.5 | U18: 39.89 | V18: 199.45 | W18: 478.68
N19: 130 | O19: 1.58 | P19: 7.9 | Q19: 18.96 | R19: 3.5 | S19: 10.5 | T19: 17.5 | U19: 34.29 | V19: 171.45 | W19: 411.48
N20: 140 | O20: 1.38 | P20: 6.9 | Q20: 16.56 | R20: 3.1 | S20: 9.3 | T20: 15.5 | U20: 29.81 | V20: 149.05 | W20: 357.72
N21: 150 | O21: 1.2 | P21: 6 | Q21: 14.4 | R21: 2.8 | S21: 8.4 | T21: 14 | U21: 25.8 | V21: 129 | W21: 309.6
N22: 160 | O22: 1.08 | P22: 5.4 | Q22: 12.96 | R22: 2.5 | S22: 7.5 | T22: 12.5 | U22: 23.11 | V22: 115.55 | W22: 277.32
N23: 170 | O23: 0.96 | P23: 4.8 | Q23: 11.52 | R23: 2.2 | S23: 6.6 | T23: 11 | U23: 20.45 | V23: 102.25 | W23: 245.4
N24: 180 | O24: 0.88 | P24: 4.4 | Q24: 10.56 | R24: 2 | S24: 6 | T24: 10 | U24: 18.66 | V24: 93.3 | W24: 223.92
N25: 190 | O25: 0.79 | P25: 3.95 | Q25: 9.48 | R25: 1.84 | S25: 5.52 | T25: 9.2 | U25: 16.67 | V25: 83.35 | W25: 200.04
N26: 200 | O26: 0.73 | P26: 3.65 | Q26: 8.76 | R26: 1.7 | S26: 5.1 | T26: 8.5 | U26: 14.6 | V26: 73 | W26: 175.2
N27: 210 | O27: 0.67 | P27: 3.35 | Q27: 8.04 | R27: 1.6 | S27: 4.8 | T27: 8 | U27: 13.33 | V27: 66.65 | W27: 159.96
N28: 220 | O28: 0.61 | P28: 3.05 | Q28: 7.32 | R28: 1.54 | S28: 4.62 | T28: 7.7 | U28: 12.08 | V28: 60.4 | W28: 144.96
N29: 230 | O29: 0.58 | P29: 2.9 | Q29: 6.96 | R29: 1.5 | S29: 4.5 | T29: 7.5 | U29: 11.43 | V29: 57.15 | W29: 137.16
N30: 240 | O30: 0.57 | P30: 2.85 | Q30: 6.84 | R30: 1.44 | S30: 4.32 | T30: 7.2 | U30: 11.17 | V30: 55.85 | W30: 134.04
N31: 250 | O31: 0.55 | P31: 2.75 | Q31: 6.6 | R31: 1.4 | S31: 4.2 | T31: 7 | U31: 10.73 | V31: 53.65 | W31: 128.76

Sheet CDH -Distributed (hidden)
A7: Payload processing unit | F7: CSC(Computer software componets)
A8: Payload Data Rate | C8: ='CDH - DataBudget & Mass Storage'!C7*0.125 -> 7500 | D8: Byte/sec | F8: Processes | G8: Is the process required? | H8: Programming Language different from assembly | I8: Complexity vs SOA | J8: SLOC | K8: Typical Exectution Frequency [Hz]
A9: Number of instructions per byte | C9: =IF(B9="",1,"") -> 1 | F9: Communication
A10: CPU frequency | B10: 400 | C10: =IF(B10="","",B10) -> 400 | D10: KHz | F10: Command Processing | G10: 1 | H10: 1 | I10: 1 | J10: =IF(AND(H10=1),G10*(Constants!N116+(Constants!N116*I10)+(Constants!N116*0.25)),G10*Constants!N116+Constants!N116*I10) -> 2250 | K10: 10
A11: Estimated throughtput | C11: =IF(B11="",ROUND(((C10/(G14+G57*I57+G63*I63))+C8*C9)/'CDH - DataBudget & Mass Storage'!G11,0),"") -> 9386 | D11: KIPS | F11: Telemetry processing | G11: 1 | H11: 1 | I11: 1 | J11: =IF(AND(H11=1),G11*(Constants!N117+(Constants!N117*I11)+(Constants!N117*0.25)),G11*Constants!N117+Constants!N117*I11) -> 2250 | K11: 10
A12: Data protocol | C12: I2C | F12: Telemetry processing (with compression) | G12: 1 | H12: 1 | I12: 1 | J12: =IF(AND(H12=1),G12*(Constants!N118+(Constants!N118*I12)+(Constants!N118*0.25)),G12*Constants!N118+Constants!N118*I12) -> 7875
A13: I/O bus | C13: RS485 | D13: =IF(VLOOKUP(C13,A106:B112,2,FALSE)<'CDH - DataBudget & Mass Storage'!C7,"Not Comply","Comply") -> Comply | F13: Total | G13: =SUM(J10:J12) -> 12375 | H13: Margin | I13: 1 | J13: Total with Margin | K13: =G13+G13*I13 -> 24750
F14: Pecent of avaiable processing | G14: =(G13/$G$64) -> 0.04735029654 | H14: Clock Cycles | I14: 10
A15: Telemetry and health keeping processing unit | F15: Sensor
A16: Data rate | C16: =ROUND(('CDH - DataBudget & Mass Storage'!C14)*0.125,0) -> 98 | D16: bit/sec | F16: Rate Gyro | G16: 1 | H16: 1 | I16: 0.5 | J16: =IF(AND(H16=1),G16*(Constants!N124+(Constants!N124*I16)+(Constants!N124*0.25)),G16* Constants!N124+Constants!N124*I16) -> 1400 | K16: 10
A17: Estimated Lines of Code | C17: =K13+K56+K62 -> 67800 | D17: SLOC | F17: Sun Sensor | G17: 1 | H17: 1 | I17: 0.5 | J17: =IF(AND(H17=1),G17*(Constants!N125+(Constants!N125*I17)+(Constants!N125*0.25)),G17* Constants!N125+Constants!N125*I17) -> 875 | K17: 1
A18: Minimum CPU frequency | B18: 10 | C18: =IF(B18="","",B18) -> 10 | D18: KHz | F18: Earth Sensor | G18: 1 | H18: 1 | I18: 0.5 | J18: =IF(AND(H18=1),G18*(Constants!N126+(Constants!N126*I18)+(Constants!N126*0.25)),G18* Constants!N126+Constants!N126*I18) -> 2100 | K18: 2
A19: OBC throughtput | C19: =IF(B19="",ROUND((C18/(G14*I14+G49*I49+G57*I57+G63*I63))/'CDH - DataBudget & Mass Storage'!G13,2),B19) -> 12.62 | D19: KIPS | F19: Magnetormeter | G19: 1 | H19: 1 | I19: 0.5 | J19: =IF(AND(H19=1),G19*(Constants!N127+(Constants!N127*I19)+(Constants!N127*0.25)),G19* Constants!N127+Constants!N127*I19) -> 350 | K19: 0.01
A20: Data protocol | C20: I2C | F20: Star Tracker (no id) | G20: 1 | H20: 1 | I20: 0.5 | J20: =IF(AND(H20=1),G20*(Constants!N128+(Constants!N128*I20)+(Constants!N128*0.25)),G20* Constants!N128+Constants!N128*I20) -> 700 | K20: 0.01
A21: I/O bus | C21: I2C | D21: =IF(VLOOKUP(C21,A106:B112,2,FALSE)<'CDH - DataBudget & Mass Storage'!C14,"Not Comply","Comply") -> Comply | F21: Star tracker output quaternion | G21: 1 | H21: 1 | I21: 0.5 | J21: =IF(AND(H21=1),G21*(Constants!N129+(Constants!N129*I21)+(Constants!N129*0.25)),G21* Constants!N129+Constants!N129*I21) -> 3500 | K21: 1
F22: GPS(Position/velocity) | G22: 1 | H22: 1 | I22: 0.5 | J22: =IF(AND(H22=1),G22*(Constants!N130+(Constants!N130*I22)+(Constants!N130*0.25)),G22* Constants!N130+Constants!N130*I22) -> 525 | K22: 1
A23: ADCS processing unit | F23: GPS(Pseudo Range) | G23: 1 | H23: 1 | I23: 0.5 | J23: =IF(AND(H23=1),G23*(Constants!N131+(Constants!N131*I23)+(Constants!N131*0.25)),G23* Constants!N131+Constants!N131*I23) -> 4375
A24: Data rate | C24: =ROUND('CDH - DataBudget & Mass Storage'!C15,2) -> 1200 | D24: bit/sec | F24: Total | G24: =SUM(J16:J23) -> 13825 | H24: Margin | I24: 1 | J24: Total with Margin | K24: =G24+G24*I24 -> 27650
A25: Estimated Lines of Code | C25: =K24+K35+K42+K48+K56 -> 219100 | D25: SLOC | F25: Pecent of avaiable processing | G25: =(G24/$G$64) -> 0.05289841209 | H25: Clock Cycles | I25: 2
A26: Minimum CPU frequency | B26: 10 | C26: =IF(B26="","",B26) -> 10 | D26: KHz | F26: AOCS
A27: ADCS throughtput | C27: =IF(B27="",ROUND(C26/(G25*I25+G57*I57+G63*I63+G36*I36+G43*I43)/'CDH - DataBudget & Mass Storage'!G13,2),B27) -> 13.31 | D27: KIPS | F27: Kintetik integration | G27: 1 | H27: 1 | I27: 0.5 | J27: =IF(AND(H27=1),G27*(Constants!N136+(Constants!N136*I27)+(Constants!N136*0.25)),G27*Constants!N136+Constants!N136*I27) -> 3500 | K27: 10
A28: Data protocol | C28: I2C | F28: Kalman Filter | G28: 1 | H28: 1 | I28: 0.5 | J28: =IF(AND(H28=1),G28*(Constants!N137+(Constants!N137*I28)+(Constants!N137*0.25)),G28*Constants!N137+Constants!N137*I28) -> 14000 | K28: 0.01
A29: I/O bus | C29: RS422 | D29: =IF(VLOOKUP(C29,A106:B112,2,FALSE)<'CDH - DataBudget & Mass Storage'!C15,"Not Comply","Comply") -> Comply | F29: Error Determination | G29: 1 | H29: 1 | I29: 0.5 | J29: =IF(AND(H29=1),G29*(Constants!N138+(Constants!N138*I29)+(Constants!N138*0.25)),G29*Constants!N138+Constants!N138*I29) -> 1400 | K29: 10
F30: Process Control | G30: 1 | H30: 1 | I30: 0.5 | J30: =IF(AND(H30=1),G30*(Constants!N139+(Constants!N139*I30)+(Constants!N139*0.25)),G30*Constants!N139+Constants!N139*I30) -> 6125 | K30: 2
F31: Ephemerisis Propagator | G31: 1 | H31: 1 | I31: 0.5 | J31: =IF(AND(H31=1),G31*(Constants!N140+(Constants!N140*I31)+(Constants!N140*0.25)),G31*Constants!N140+Constants!N140*I31) -> 3500 | K31: 2
F32: Complex Ephemerisis | G32: 1 | H32: 1 | I32: 0.5 | J32: =IF(AND(H32=1),G32*(Constants!N141+(Constants!N141*I32)+(Constants!N141*0.25)),G32*Constants!N141+Constants!N141*I32) -> 7000 | K32: 2
F33: Orbit Propagator (Linear) | G33: 1 | H33: 1 | I33: 0.5 | J33: =IF(AND(H33=1),G33*(Constants!N142+(Constants!N142*I33)+(Constants!N142*0.25)),G33*Constants!N142+Constants!N142*I33) -> 5250 | K33: 1
F34: Orbit Propagator (Complex Envirolment) | G34: 1 | H34: 1 | I34: 0.5 | J34: =IF(AND(H34=1),G34*(Constants!N143+(Constants!N143*I34)+(Constants!N143*0.25)),G34*Constants!N143+Constants!N143*I34) -> 14875 | K34: 2
F35: Total | G35: =SUM(J27:J34) -> 55650 | H35: Margin | I35: 1 | J35: Total with Margin | K35: =G35+G35*I35 -> 111300
F36: Pecent of avaiable processing | G36: =(G35/$G$64) -> 0.2129328487 | H36: Clock Cycles | I36: 2
F37: Actuator
F38: Magnetic control | G38: 1 | H38: 1 | I38: 0.5 | J38: =IF(AND(H38=1),G38*(Constants!N148+(Constants!N148*I38)+(Constants!N148*0.25)),G38*Constants!N148+Constants!N148*I38) -> 1050 | K38: 2
F39: Thruster Control | G39: 1 | H39: 1 | I39: 0.5 | J39: =IF(AND(H39=1),G39*(Constants!N149+(Constants!N149*I39)+(Constants!N149*0.25)),G39*Constants!N149+Constants!N149*I39) -> 1400 | K39: 2
F40: Reaction wheel control | G40: 1 | H40: 1 | I40: 0.5 | J40: =IF(AND(H40=1),G40*(Constants!N150+(Constants!N150*I40)+(Constants!N150*0.25)),G40*Constants!N150+Constants!N150*I40) -> 2100 | K40: 2
F41: CMG control | G41: 1 | H41: 1 | I41: 0.5 | J41: =IF(AND(H41=1),G41*(Constants!N151+(Constants!N151*I41)+(Constants!N151*0.25)),G41*Constants!N151+Constants!N151*I41) -> 2625 | K41: 10
F42: Total | G42: =SUM(J38:J41) -> 7175 | H42: Margin | I42: 1 | J42: Total with Margin | K42: =G42+G42*I42 -> 14350
F43: Pecent of avaiable processing | G43: =(G42/$G$64) -> 0.02745360628 | H43: Clock Cycles | I43: 2
F44: FDIR
F45: Monitor | G45: 1 | H45: 1 | I45: 0.5 | J45: =IF(AND(H45=1),G45*(Constants!N156+(Constants!N156*I45)+(Constants!N156*0.25)),G45*Constants!N156+Constants!N156*I45) -> 7000 | K45: 5
F46: Fault identification | G46: 1 | H46: 1 | I46: 0.5 | J46: =IF(AND(H46=1),G46*(Constants!N157+(Constants!N157*I46)+(Constants!N157*0.25)),G46*Constants!N157+Constants!N157*I46) -> 4375 | K46: 5
F47: Fault Correction | G47: 1 | H47: 1 | I47: 0.5 | J47: =IF(AND(H47=1),G47*(Constants!N158+(Constants!N158*I47)+(Constants!N158*0.25)),G47*Constants!N158+Constants!N158*I47) -> 8750 | K47: 5
F48: Total | G48: =SUM(J44:J47) -> 20125 | H48: Margin | I48: 1 | J48: Total with Margin | K48: =G48+G48*I48 -> 40250
F49: Pecent of avaiable processing | G49: =(G48/$G$64) -> 0.0770040176 | H49: Clock Cycles | I49: 2
F50: Utilites
F51: Basic Math | G51: 1 | H51: 1 | I51: 0.5 | J51: =IF(AND(H51=1),G51*(Constants!N163+(Constants!N163*I51)+(Constants!N163*0.25)),G51*Constants!N163+Constants!N163*I51) -> 1400
F52: Trascendental Math | G52: 1 | H52: 1 | I52: 0.5 | J52: =IF(AND(H52=1),G52*(Constants!N164+(Constants!N164*I52)+(Constants!N164*0.25)),G52*Constants!N164+Constants!N164*I52) -> 2625
F53: Matrix Math | G53: 1 | H53: 1 | I53: 0.5 | J53: =IF(AND(H53=1),G53*(Constants!N165+(Constants!N165*I53)+(Constants!N165*0.25)),G53*Constants!N165+Constants!N165*I53) -> 3150
F54: Time Mng and conversion | G54: 1 | H54: 1 | I54: 0.5 | J54: =IF(AND(H54=1),G54*(Constants!N166+(Constants!N166*I54)+(Constants!N166*0.25)),G54*Constants!N166+Constants!N166*I54) -> 2100
F55: Coordinate conversion | G55: 1 | H55: 1 | I55: 0.5 | J55: =IF(AND(H55=1),G55*(Constants!N167+(Constants!N167*I55)+(Constants!N167*0.25)),G55*Constants!N167+Constants!N167*I55) -> 3500
F56: Total | G56: =SUM(J51:J55) -> 12775 | H56: Margin | I56: 1 | J56: Total with Margin | K56: =G56+G56*I56 -> 25550
F57: Pecent of avaiable processing | G57: =(G56/$G$64) -> 0.04888081117 | H57: Clock Cycle | I57: 2
F58: Others
F59: Momentum Mng | G59: 1 | H59: 1 | I59: 0.5 | J59: =IF(H59=1,Constants!N172+(Constants!N172*0.25)+Constants!N172*I59,G59*Constants!N172+Constants!N172*I59) -> 5250
F60: Power Mng | G60: 1 | H60: 1 | I60: 0.5 | J60: =IF(H60=1,Constants!N173+(Constants!N173*0.25)+Constants!N173*I60,G60*Constants!N173+Constants!N173*I60) -> 2100 | K60: 1
F61: Thermal Control | G61: 1 | H61: 1 | I61: 0.5 | J61: =IF(H61=1,Constants!N174+(Constants!N174*0.25)+Constants!N174*I61,G61*Constants!N174+Constants!N174*I61) -> 1400 | K61: 0.1
F62: Total | G62: =SUM(J58:J61) -> 8750 | H62: Margin | I62: 1 | J62: Total with Margin | K62: =G62+G62*I62 -> 17500
F63: Pecent of avaiable processing | G63: =(G62/$G$64) -> 0.03348000765 | H63: Clock Cycle | I63: 2
F64: Grand Total | G64: =SUM(K62,K56,K48,K42,K35,K24,K13) -> 261350 | H64: Margin | I64: 0.2 | J64: Total With Margin | K64: =G64+G64*I64 -> 313620
B84: RS422 | E84: 1
B85: RS485 | E85: 0
A86: Distributed - Bus ( Multi Master) | B86: PASTE
A87: Distributed - Star | B87: CAN
A88: Distributed Ring | B88: Mil-STD-1553
B89: I2C
C98: Compression Rate
A99: GNU | B99: None | C99: 1
A100: LINUX | B100: Lossless Compression | C100: =1/4 -> 0.25
A101: BSD | B101: Near-lossless compression | C101: =1/30 -> 0.03333333333
A102: OAR (real-time multiprocessor) | B102: Lossy Compression | C102: =1/80 -> 0.0125
A105: Bus I/O | B105: Data Rate
